[Event "Early-Titled-Tuesday-Blitz-September-26-2023"]
[Site "Chess.com"]
[Date "2023.09.26"]
[Round "3"]
[White "Lady_Nika"]
[Black "TregubovP"]
[Result "1-0"]
[WhiteElo "2477"]
[BlackElo "2632"]
[TimeControl "180+1"]
[EndTime "8:29:20 PDT"]
[Termination "Lady_Nika won on time"]

1. e4 {[%clk 0:03:00.9]} 1... c5 {[%clk 0:02:57.3]} 2. Nc3 {[%clk 0:03:00.9]}
2... e6 {[%clk 0:02:57.3]} 3. g3 {[%clk 0:03:01]} 3... d5 {[%clk 0:02:57.4]} 4.
d3 {[%clk 0:03:01.2]} 4... d4 {[%clk 0:02:50.5]} 5. Nce2 {[%clk 0:03:01.3]} 5...
Nc6 {[%clk 0:02:49.8]} 6. Bg2 {[%clk 0:03:01.5]} 6... Nf6 {[%clk 0:02:50.4]} 7.
f4 {[%clk 0:03:01.7]} 7... Be7 {[%clk 0:02:50.7]} 8. Nf3 {[%clk 0:03:01.9]} 8...
O-O {[%clk 0:02:50.8]} 9. O-O {[%clk 0:03:02.3]} 9... Rb8 {[%clk 0:02:51.3]} 10.
h3 {[%clk 0:03:02.7]} 10... b5 {[%clk 0:02:50.6]} 11. g4 {[%clk 0:03:01.4]}
11... c4 {[%clk 0:02:46.2]} 12. Ng3 {[%clk 0:03:01.5]} 12... Qc7 {[%clk
0:02:34.6]} 13. g5 {[%clk 0:02:59.9]} 13... Nd7 {[%clk 0:02:34.3]} 14. e5 {[%clk
0:02:59.9]} 14... cxd3 {[%clk 0:02:24.1]} 15. cxd3 {[%clk 0:02:59]} 15... Nb4
{[%clk 0:02:24.2]} 16. Ne4 {[%clk 0:02:56]} 16... Rd8 {[%clk 0:02:10]} 17. Rf2
{[%clk 0:02:52.6]} 17... Bb7 {[%clk 0:02:06.5]} 18. a3 {[%clk 0:02:51.9]} 18...
Nd5 {[%clk 0:02:06.5]} 19. Re2 {[%clk 0:02:41.4]} 19... Nc5 {[%clk 0:02:01.6]}
20. Nh4 {[%clk 0:02:20.6]} 20... Nxe4 {[%clk 0:01:50.2]} 21. Bxe4 {[%clk
0:02:21.5]} 21... Ne3 {[%clk 0:01:50.4]} 22. Bxe3 {[%clk 0:01:31.7]} 22... Bxe4
{[%clk 0:01:43.5]} 23. Bf2 {[%clk 0:01:25.9]} 23... Ba8 {[%clk 0:01:39.9]} 24.
Be1 {[%clk 0:01:12]} 24... Qc6 {[%clk 0:01:35.7]} 25. Ng2 {[%clk 0:01:09.9]}
25... Rbc8 {[%clk 0:01:32.8]} 26. Rf2 {[%clk 0:01:05.9]} 26... Qd5 {[%clk
0:01:16.7]} 27. Qg4 {[%clk 0:01:02.6]} 27... Rd7 {[%clk 0:01:10.4]} 28. Ba5
{[%clk 0:00:54.8]} 28... Qb3 {[%clk 0:01:00.7]} 29. f5 {[%clk 0:00:47.3]} 29...
exf5 {[%clk 0:00:54.9]} 30. Qxf5 {[%clk 0:00:44.1]} 30... Qe6 {[%clk 0:00:54.4]}
31. Raf1 {[%clk 0:00:16.3]} 31... Qxf5 {[%clk 0:00:53]} 32. Rxf5 {[%clk
0:00:17.2]} 32... Rc2 {[%clk 0:00:35]} 33. R5f2 {[%clk 0:00:15.8]} 33... Rxf2
{[%clk 0:00:34.4]} 34. Rxf2 {[%clk 0:00:15.7]} 34... Bxg5 {[%clk 0:00:34.2]} 35.
h4 {[%clk 0:00:14.7]} 35... Bd8 {[%clk 0:00:26.8]} 36. Bxd8 {[%clk 0:00:12]}
36... Rxd8 {[%clk 0:00:27]} 37. Nf4 {[%clk 0:00:12.7]} 37... Re8 {[%clk
0:00:23.9]} 38. Re2 {[%clk 0:00:11.1]} 38... g6 {[%clk 0:00:19.4]} 39. e6 {[%clk
0:00:11.3]} 39... fxe6 {[%clk 0:00:19.1]} 40. Rxe6 {[%clk 0:00:12.2]} 40... Rf8
{[%clk 0:00:16.6]} 41. Ne2 {[%clk 0:00:10.4]} 41... Bd5 {[%clk 0:00:12.1]} 42.
Re5 {[%clk 0:00:10]} 42... Ba2 {[%clk 0:00:11.1]} 43. Nxd4 {[%clk 0:00:09.9]}
43... Rf4 {[%clk 0:00:11.6]} 44. Nxb5 {[%clk 0:00:09.7]} 44... Rg4+ {[%clk
0:00:11]} 45. Kf2 {[%clk 0:00:09.6]} 45... Rxh4 {[%clk 0:00:11.5]} 46. Nxa7
{[%clk 0:00:09.8]} 46... Rh2+ {[%clk 0:00:11.5]} 47. Ke3 {[%clk 0:00:10]} 47...
Rxb2 {[%clk 0:00:12]} 48. Nc6 {[%clk 0:00:10.5]} 48... Kg7 {[%clk 0:00:12]} 49.
Re7+ {[%clk 0:00:10.6]} 49... Kh6 {[%clk 0:00:12]} 50. Ne5 {[%clk 0:00:10.2]}
50... Rg2 {[%clk 0:00:11.2]} 51. Kf3 {[%clk 0:00:09.2]} 51... Rg1 {[%clk
0:00:10.2]} 52. Ng4+ {[%clk 0:00:09]} 52... Kg5 {[%clk 0:00:09.4]} 53. Re5+
{[%clk 0:00:08.9]} 53... Kh4 {[%clk 0:00:10]} 54. Nf2 {[%clk 0:00:07.5]} 54...
Rg3+ {[%clk 0:00:08.9]} 55. Ke2 {[%clk 0:00:07.1]} 55... g5 {[%clk 0:00:07.7]}
56. a4 {[%clk 0:00:07.1]} 56... h5 {[%clk 0:00:07.4]} 57. a5 {[%clk 0:00:07.2]}
57... Rg1 {[%clk 0:00:05.5]} 58. a6 {[%clk 0:00:07.4]} 58... Bb3 {[%clk
0:00:03.5]} 59. Ra5 {[%clk 0:00:06.2]} 1-0

[Event "Early-Titled-Tuesday-Blitz-September-26-2023"]
[Site "Chess.com"]
[Date "2023.09.26"]
[Round "3"]
[White "Denis_Makhnyov"]
[Black "profedechess93"]
[Result "1-0"]
[WhiteElo "2923"]
[BlackElo "2674"]
[TimeControl "180+1"]
[EndTime "8:29:21 PDT"]
[Termination "Denis_Makhnyov won by resignation"]

1. d4 {[%clk 0:03:00.9]} 1... d5 {[%clk 0:02:59.3]} 2. c4 {[%clk 0:03:01.2]}
2... c6 {[%clk 0:02:59.6]} 3. Nf3 {[%clk 0:03:01.6]} 3... Nf6 {[%clk 0:02:59.9]}
4. Qc2 {[%clk 0:03:02]} 4... dxc4 {[%clk 0:03:00.1]} 5. Qxc4 {[%clk 0:03:02]}
5... Bg4 {[%clk 0:03:00.8]} 6. Nbd2 {[%clk 0:03:01.4]} 6... Nbd7 {[%clk
0:03:00.9]} 7. g3 {[%clk 0:03:01.7]} 7... e6 {[%clk 0:03:01.2]} 8. Bg2 {[%clk
0:03:02]} 8... Bh5 {[%clk 0:03:01.9]} 9. O-O {[%clk 0:03:01.8]} 9... Be7 {[%clk
0:03:02.6]} 10. Qb3 {[%clk 0:03:01.8]} 10... Qb6 {[%clk 0:03:01.6]} 11. Nc4
{[%clk 0:03:02.1]} 11... Qa6 {[%clk 0:02:57.2]} 12. Bf4 {[%clk 0:03:02.1]} 12...
O-O {[%clk 0:02:56.3]} 13. Rfe1 {[%clk 0:02:54.4]} 13... Nb6 {[%clk 0:02:48.2]}
14. Rac1 {[%clk 0:02:41.3]} 14... Nfd5 {[%clk 0:02:20.3]} 15. Bd6 {[%clk
0:02:30.2]} 15... Rfd8 {[%clk 0:01:48]} 16. Bxe7 {[%clk 0:02:26.3]} 16... Nxe7
{[%clk 0:01:48.9]} 17. e3 {[%clk 0:02:26.2]} 17... Qa4 {[%clk 0:01:34.7]} 18.
Qxa4 {[%clk 0:02:10.1]} 18... Nxa4 {[%clk 0:01:35.6]} 19. b3 {[%clk 0:02:10.7]}
19... Nb6 {[%clk 0:01:35.7]} 20. Na5 {[%clk 0:02:11.2]} 20... Rab8 {[%clk
0:01:36.3]} 21. Ne5 {[%clk 0:02:10.9]} 21... f6 {[%clk 0:01:35.3]} 22. Nd3
{[%clk 0:02:10.2]} 22... Nd7 {[%clk 0:01:25.4]} 23. b4 {[%clk 0:01:43.3]} 23...
Bg6 {[%clk 0:01:22]} 24. Nf4 {[%clk 0:01:04.4]} 24... Bf7 {[%clk 0:01:21.8]} 25.
a3 {[%clk 0:01:05.1]} 25... e5 {[%clk 0:01:21.2]} 26. Ne2 {[%clk 0:01:04.5]}
26... Bh5 {[%clk 0:01:18]} 27. Nc3 {[%clk 0:00:59]} 27... exd4 {[%clk
0:01:13.3]} 28. exd4 {[%clk 0:00:59.9]} 28... Nf5 {[%clk 0:01:13.8]} 29. d5
{[%clk 0:00:46.9]} 29... c5 {[%clk 0:01:10.9]} 30. h3 {[%clk 0:00:21.1]} 30...
Nd4 {[%clk 0:01:09.6]} 31. g4 {[%clk 0:00:21.5]} 31... Bg6 {[%clk 0:01:01.8]}
32. Ne4 {[%clk 0:00:21.8]} 32... cxb4 {[%clk 0:00:54.4]} 33. axb4 {[%clk
0:00:22.3]} 33... Ne5 {[%clk 0:00:54]} 34. Rc3 {[%clk 0:00:15]} 34... Nb5 {[%clk
0:00:42]} 35. Rg3 {[%clk 0:00:13.9]} 35... Nd4 {[%clk 0:00:38.3]} 36. f4 {[%clk
0:00:13.2]} 36... Nd7 {[%clk 0:00:35.4]} 37. Nc5 {[%clk 0:00:09.7]} 37... b6
{[%clk 0:00:29.6]} 38. Nxd7 {[%clk 0:00:08.5]} 38... Rxd7 {[%clk 0:00:30.5]} 39.
Nc6 {[%clk 0:00:09.3]} 39... Nxc6 {[%clk 0:00:29.1]} 40. dxc6 {[%clk 0:00:10.2]}
40... Rc7 {[%clk 0:00:24.7]} 41. b5 {[%clk 0:00:10.1]} 41... Re8 {[%clk
0:00:20.2]} 42. Rxe8+ {[%clk 0:00:09.2]} 42... Bxe8 {[%clk 0:00:21.1]} 43. Rd3
{[%clk 0:00:08.6]} 43... Kf8 {[%clk 0:00:21]} 44. Rd8 {[%clk 0:00:08.8]} 44...
Ke7 {[%clk 0:00:20.9]} 45. Ra8 {[%clk 0:00:08.9]} 45... h5 {[%clk 0:00:18.3]}
46. Kf2 {[%clk 0:00:08.1]} 46... hxg4 {[%clk 0:00:18.3]} 47. hxg4 {[%clk
0:00:09]} 47... Bf7 {[%clk 0:00:18.9]} 48. Bf1 {[%clk 0:00:07.8]} 48... Bd5
{[%clk 0:00:19.3]} 49. Ke3 {[%clk 0:00:07.9]} 49... Kd6 {[%clk 0:00:19.8]} 50.
Kd4 {[%clk 0:00:07.7]} 50... Bf3 {[%clk 0:00:20.3]} 51. g5 {[%clk 0:00:07.6]}
51... Ke6 {[%clk 0:00:20]} 52. Bh3+ {[%clk 0:00:07]} 52... f5 {[%clk 0:00:20.4]}
53. Bf1 {[%clk 0:00:06.6]} 53... Kd6 {[%clk 0:00:20.2]} 54. Bd3 {[%clk
0:00:06.4]} 54... Re7 {[%clk 0:00:20.7]} 55. Bxf5 {[%clk 0:00:03.9]} 55... Be2
{[%clk 0:00:17.7]} 56. Bd3 {[%clk 0:00:02.3]} 56... Bxd3 {[%clk 0:00:18]} 57.
Kxd3 {[%clk 0:00:03.2]} 57... Kc5 {[%clk 0:00:18.3]} 58. Rd8 {[%clk 0:00:02.6]}
58... Kxb5 {[%clk 0:00:17.7]} 59. Rd7 {[%clk 0:00:03.2]} 59... Re8 {[%clk
0:00:18.1]} 60. c7 {[%clk 0:00:03.8]} 60... Rc8 {[%clk 0:00:17.8]} 61. Rxg7
{[%clk 0:00:04.1]} 61... Kc6 {[%clk 0:00:17.1]} 62. g6 {[%clk 0:00:04.5]} 62...
b5 {[%clk 0:00:16.8]} 63. Rf7 {[%clk 0:00:04.6]} 63... Rg8 {[%clk 0:00:16.7]}
64. g7 {[%clk 0:00:04.9]} 64... Kb7 {[%clk 0:00:16.9]} 65. c8=Q+ {[%clk
0:00:05.4]} 65... Kxc8 {[%clk 0:00:16.3]} 66. Rf8+ {[%clk 0:00:06]} 1-0

[Event "Early-Titled-Tuesday-Blitz-September-26-2023"]
[Site "Chess.com"]
[Date "2023.09.26"]
[Round "3"]
[White "Emp3rador"]
[Black "Igrok3069"]
[Result "0-1"]
[WhiteElo "2521"]
[BlackElo "2871"]
[TimeControl "180+1"]
[EndTime "8:29:22 PDT"]
[Termination "Igrok3069 won by resignation"]

1. e4 {[%clk 0:03:00.9]} 1... c5 {[%clk 0:02:55.9]} 2. Nf3 {[%clk 0:03:00.9]}
2... e6 {[%clk 0:02:55.7]} 3. d4 {[%clk 0:03:00.8]} 3... cxd4 {[%clk 0:02:56.6]}
4. Nxd4 {[%clk 0:03:01.7]} 4... Nf6 {[%clk 0:02:56.8]} 5. Nc3 {[%clk 0:03:02.2]}
5... Nc6 {[%clk 0:02:57.4]} 6. Ndb5 {[%clk 0:02:56.7]} 6... Bc5 {[%clk 0:02:57]}
7. Bf4 {[%clk 0:02:38.9]} 7... O-O {[%clk 0:02:53.9]} 8. Bd6 {[%clk 0:02:33.1]}
8... Qb6 {[%clk 0:02:34.6]} 9. Bxc5 {[%clk 0:02:27]} 9... Qxc5 {[%clk
0:02:35.5]} 10. Qd6 {[%clk 0:02:24.5]} 10... Qg5 {[%clk 0:02:22.7]} 11. Qg3
{[%clk 0:01:42.1]} 11... Qxg3 {[%clk 0:01:47.1]} 12. hxg3 {[%clk 0:01:43]} 12...
a6 {[%clk 0:01:43.9]} 13. Nd6 {[%clk 0:01:40.9]} 13... Ne8 {[%clk 0:01:35.3]}
14. O-O-O {[%clk 0:01:40.5]} 14... Nxd6 {[%clk 0:01:34.9]} 15. Rxd6 {[%clk
0:01:41.4]} 15... b5 {[%clk 0:01:13.2]} 16. Be2 {[%clk 0:01:19.8]} 16... Ra7
{[%clk 0:01:11.6]} 17. f4 {[%clk 0:01:03.8]} 17... Rc7 {[%clk 0:01:10.6]} 18.
Rhd1 {[%clk 0:01:02.7]} 18... f6 {[%clk 0:01:10.4]} 19. a3 {[%clk 0:00:56.4]}
19... Kf7 {[%clk 0:01:09.9]} 20. Kb1 {[%clk 0:00:40.3]} 20... Ke7 {[%clk
0:01:08.3]} 21. a4 {[%clk 0:00:24.8]} 21... b4 {[%clk 0:01:07]} 22. Na2 {[%clk
0:00:23.5]} 22... Bb7 {[%clk 0:01:05.4]} 23. Nc1 {[%clk 0:00:23.1]} 23... Rfc8
{[%clk 0:00:53.4]} 24. Nb3 {[%clk 0:00:22.3]} 24... Nb8 {[%clk 0:00:54.1]} 25.
R1d2 {[%clk 0:00:19.1]} 25... Bxe4 {[%clk 0:00:53]} 26. Rb6 {[%clk 0:00:17.7]}
26... Rxc2 {[%clk 0:00:46.5]} 27. Rxc2 {[%clk 0:00:17.4]} 27... Bxc2+ {[%clk
0:00:40]} 28. Ka2 {[%clk 0:00:17.2]} 28... Bxb3+ {[%clk 0:00:37.2]} 29. Kxb3
{[%clk 0:00:18.1]} 29... a5 {[%clk 0:00:37.8]} 30. Bb5 {[%clk 0:00:18.3]} 30...
Rc7 {[%clk 0:00:37.2]} 31. Rxb8 {[%clk 0:00:18.2]} 31... Ra7 {[%clk 0:00:25.5]}
32. Rb6 {[%clk 0:00:17.8]} 32... d5 {[%clk 0:00:20.8]} 33. Ra6 {[%clk
0:00:17.8]} 33... Rxa6 {[%clk 0:00:21.4]} 34. Bxa6 {[%clk 0:00:18.3]} 34... Kd6
{[%clk 0:00:21.8]} 35. Kc2 {[%clk 0:00:17.9]} 35... e5 {[%clk 0:00:17.8]} 36.
Kd3 {[%clk 0:00:16.6]} 36... Kc5 {[%clk 0:00:17.3]} 37. Ke3 {[%clk 0:00:16.6]}
37... g6 {[%clk 0:00:14.9]} 38. Bc8 {[%clk 0:00:08.8]} 38... Kc4 {[%clk
0:00:06.8]} 39. fxe5 {[%clk 0:00:07.6]} 39... fxe5 {[%clk 0:00:06.7]} 40. Be6
{[%clk 0:00:08.3]} 40... h6 {[%clk 0:00:04.9]} 41. g4 {[%clk 0:00:06.6]} 41...
g5 {[%clk 0:00:04.5]} 42. g3 {[%clk 0:00:07]} 42... Kb3 {[%clk 0:00:04]} 43.
Bxd5+ {[%clk 0:00:07.3]} 43... Kxb2 {[%clk 0:00:04.6]} 44. Ke4 {[%clk
0:00:07.7]} 44... b3 {[%clk 0:00:05.2]} 45. Kxe5 {[%clk 0:00:08.1]} 45... Ka3
{[%clk 0:00:03.8]} 46. Kf6 {[%clk 0:00:07.4]} 46... b2 {[%clk 0:00:04.1]} 47.
Be4 {[%clk 0:00:08]} 47... Kxa4 {[%clk 0:00:04.8]} 48. Kg6 {[%clk 0:00:08.4]}
48... Kb3 {[%clk 0:00:04.8]} 49. Kxh6 {[%clk 0:00:08.7]} 49... a4 {[%clk
0:00:05.4]} 50. Kxg5 {[%clk 0:00:08.8]} 50... a3 {[%clk 0:00:06]} 51. Bd5+
{[%clk 0:00:08.5]} 51... Kc2 {[%clk 0:00:05.1]} 52. Ba2 {[%clk 0:00:08.7]} 52...
b1=Q {[%clk 0:00:05.4]} 53. Bxb1+ {[%clk 0:00:09.5]} 53... Kxb1 {[%clk
0:00:06.1]} 54. Kf6 {[%clk 0:00:10.4]} 54... a2 {[%clk 0:00:06.7]} 55. g5 {[%clk
0:00:10.7]} 55... a1=Q+ {[%clk 0:00:07.6]} 56. Kf7 {[%clk 0:00:10.6]} 56... Qa2+
{[%clk 0:00:07.4]} 57. Kg7 {[%clk 0:00:10.9]} 57... Qa7+ {[%clk 0:00:07]} 58.
Kh6 {[%clk 0:00:11.3]} 58... Qe3 {[%clk 0:00:07]} 0-1

[Event "Early-Titled-Tuesday-Blitz-September-26-2023"]
[Site "Chess.com"]
[Date "2023.09.26"]
[Round "3"]
[White "Arteler"]
[Black "MidnightFox"]
[Result "1/2-1/2"]
[WhiteElo "2591"]
[BlackElo "2373"]
[TimeControl "180+1"]
[EndTime "8:29:22 PDT"]
[Termination "Game drawn by repetition"]

1. e4 {[%clk 0:02:56.3]} 1... c5 {[%clk 0:02:55.6]} 2. Nf3 {[%clk 0:02:56.6]}
2... d6 {[%clk 0:02:55.2]} 3. Bb5+ {[%clk 0:02:56.4]} 3... Nd7 {[%clk
0:02:54.1]} 4. O-O {[%clk 0:02:56.3]} 4... Nf6 {[%clk 0:02:54.3]} 5. Re1 {[%clk
0:02:55.9]} 5... a6 {[%clk 0:02:54.3]} 6. Bf1 {[%clk 0:02:56.4]} 6... e6 {[%clk
0:02:52.6]} 7. c3 {[%clk 0:02:56.9]} 7... Be7 {[%clk 0:02:51.2]} 8. d4 {[%clk
0:02:57.5]} 8... O-O {[%clk 0:02:50.7]} 9. h3 {[%clk 0:02:56.3]} 9... b5 {[%clk
0:02:50.2]} 10. g3 {[%clk 0:02:56.4]} 10... Bb7 {[%clk 0:02:49.9]} 11. Nbd2
{[%clk 0:02:57.1]} 11... Rc8 {[%clk 0:02:48.9]} 12. Bg2 {[%clk 0:02:57.4]} 12...
Qb6 {[%clk 0:02:47]} 13. e5 {[%clk 0:02:51.3]} 13... dxe5 {[%clk 0:02:45.5]} 14.
dxe5 {[%clk 0:02:51.7]} 14... Nd5 {[%clk 0:02:44]} 15. Ne4 {[%clk 0:02:50.3]}
15... h6 {[%clk 0:02:43]} 16. Bd2 {[%clk 0:02:25.7]} 16... Rfd8 {[%clk
0:02:41.3]} 17. Qe2 {[%clk 0:02:23.7]} 17... Nf8 {[%clk 0:02:31.1]} 18. h4
{[%clk 0:02:06.6]} 18... Rd7 {[%clk 0:02:30.1]} 19. h5 {[%clk 0:02:06.2]} 19...
Rcd8 {[%clk 0:02:29.9]} 20. Nh2 {[%clk 0:02:03.2]} 20... Nc7 {[%clk 0:02:12.1]}
21. Be3 {[%clk 0:01:56.3]} 21... Nd5 {[%clk 0:02:09.6]} 22. Bd2 {[%clk
0:01:51.9]} 22... Nc7 {[%clk 0:02:09.3]} 23. Nf1 {[%clk 0:01:35.8]} 23... Nh7
{[%clk 0:01:57.7]} 24. Be3 {[%clk 0:01:29.3]} 24... Nd5 {[%clk 0:01:56.4]} 25.
Qg4 {[%clk 0:01:29.4]} 25... Nxe3 {[%clk 0:01:53.6]} 26. Nxe3 {[%clk 0:01:30.3]}
26... Qc7 {[%clk 0:01:37.7]} 27. Qf4 {[%clk 0:01:27.5]} 27... Ng5 {[%clk
0:01:30.8]} 28. Ng4 {[%clk 0:01:19.8]} 28... Nxe4 {[%clk 0:01:27.5]} 29. Bxe4
{[%clk 0:01:20.2]} 29... Bg5 {[%clk 0:01:18.1]} 30. Qf3 {[%clk 0:01:15.1]} 30...
Bxe4 {[%clk 0:01:16.9]} 31. Qxe4 {[%clk 0:01:14.8]} 31... Rd2 {[%clk 0:01:17.6]}
32. b3 {[%clk 0:00:43.4]} 32... Qd7 {[%clk 0:01:09.7]} 33. a4 {[%clk 0:00:43.3]}
33... Qd3 {[%clk 0:01:02.9]} 34. axb5 {[%clk 0:00:43.6]} 34... axb5 {[%clk
0:00:57.9]} 35. Qc6 {[%clk 0:00:35]} 35... Qxc3 {[%clk 0:00:45.8]} 36. Nh2
{[%clk 0:00:30.2]} 36... Qd4 {[%clk 0:00:28.8]} 37. Rf1 {[%clk 0:00:30.4]} 37...
Qxe5 {[%clk 0:00:20.5]} 38. Qxb5 {[%clk 0:00:30.7]} 38... R2d3 {[%clk
0:00:18.6]} 39. Qc6 {[%clk 0:00:27.5]} 39... Rxb3 {[%clk 0:00:14.9]} 40. Rad1
{[%clk 0:00:27.4]} 40... Rbd3 {[%clk 0:00:13.4]} 41. Rxd3 {[%clk 0:00:25.9]}
41... Rxd3 {[%clk 0:00:14.3]} 42. Qe8+ {[%clk 0:00:26.6]} 42... Kh7 {[%clk
0:00:14.2]} 43. Qxf7 {[%clk 0:00:27.5]} 43... Qf5 {[%clk 0:00:14.2]} 44. Qc7
{[%clk 0:00:20.3]} 44... Rc3 {[%clk 0:00:13]} 45. Qc6 {[%clk 0:00:20.3]} 45...
Rc2 {[%clk 0:00:12.6]} 46. Kg2 {[%clk 0:00:18.8]} 46... Bf6 {[%clk 0:00:13]} 47.
Nf3 {[%clk 0:00:18.6]} 47... Rc3 {[%clk 0:00:09.2]} 48. Re1 {[%clk 0:00:17.5]}
48... Bd4 {[%clk 0:00:08.8]} 49. Rxe6 {[%clk 0:00:16.6]} 49... Rxf3 {[%clk
0:00:08]} 50. Rxh6+ {[%clk 0:00:07.3]} 50... gxh6 {[%clk 0:00:07.4]} 51. Qxf3
{[%clk 0:00:07.8]} 51... Qxf3+ {[%clk 0:00:06.7]} 52. Kxf3 {[%clk 0:00:08.7]}
52... Kg7 {[%clk 0:00:06.7]} 53. Ke2 {[%clk 0:00:08.5]} 53... Kf6 {[%clk
0:00:07.1]} 54. f4 {[%clk 0:00:08.4]} 54... Kf5 {[%clk 0:00:07.3]} 55. Kf3
{[%clk 0:00:09.1]} 55... c4 {[%clk 0:00:06.8]} 56. g4+ {[%clk 0:00:10]} 56...
Kf6 {[%clk 0:00:06.8]} 57. Ke4 {[%clk 0:00:10.9]} 57... Bb2 {[%clk 0:00:06.2]}
58. Ke3 {[%clk 0:00:08.7]} 58... c3 {[%clk 0:00:03.2]} 59. Kd3 {[%clk
0:00:09.3]} 59... Ke6 {[%clk 0:00:03.5]} 60. g5 {[%clk 0:00:07.9]} 60... hxg5
{[%clk 0:00:02.7]} 61. fxg5 {[%clk 0:00:08.8]} 61... Kf5 {[%clk 0:00:03]} 62. g6
{[%clk 0:00:09.1]} 62... Kf6 {[%clk 0:00:03.3]} 63. Kc2 {[%clk 0:00:08.7]} 63...
Kg7 {[%clk 0:00:03.9]} 64. Kd3 {[%clk 0:00:09.3]} 64... Kh6 {[%clk 0:00:04]} 65.
Kc2 {[%clk 0:00:09.9]} 65... Kg7 {[%clk 0:00:03.9]} 66. Kd3 {[%clk 0:00:10.1]}
66... Kh6 {[%clk 0:00:04.8]} 67. Ke2 {[%clk 0:00:10.3]} 67... Kg7 {[%clk
0:00:05.7]} 68. Kd3 {[%clk 0:00:10.9]} 1/2-1/2

[Event "Early-Titled-Tuesday-Blitz-September-26-2023"]
[Site "Chess.com"]
[Date "2023.09.26"]
[Round "3"]
[White "TimofeevAr"]
[Black "vladgoncharov"]
[Result "1-0"]
[WhiteElo "2871"]
[BlackElo "2523"]
[TimeControl "180+1"]
[EndTime "8:29:23 PDT"]
[Termination "TimofeevAr won by resignation"]

1. c4 {[%clk 0:03:00.9]} 1... Nf6 {[%clk 0:02:59.3]} 2. Nc3 {[%clk 0:03:00.4]}
2... c5 {[%clk 0:02:59.2]} 3. Nf3 {[%clk 0:02:59.9]} 3... e6 {[%clk 0:02:58.9]}
4. e4 {[%clk 0:02:59.6]} 4... d5 {[%clk 0:02:57.1]} 5. e5 {[%clk 0:02:56.5]}
5... Ne4 {[%clk 0:02:43.1]} 6. Bd3 {[%clk 0:02:47.8]} 6... Nxc3 {[%clk
0:02:36.9]} 7. dxc3 {[%clk 0:02:47.6]} 7... Nc6 {[%clk 0:02:30.4]} 8. O-O {[%clk
0:02:45.6]} 8... Be7 {[%clk 0:02:22.8]} 9. Bf4 {[%clk 0:02:40.5]} 9... dxc4
{[%clk 0:02:20.5]} 10. Bxc4 {[%clk 0:02:40.2]} 10... Qxd1 {[%clk 0:02:19.6]} 11.
Rfxd1 {[%clk 0:02:38.3]} 11... Bd7 {[%clk 0:01:58.4]} 12. Nd2 {[%clk 0:02:34.5]}
12... f5 {[%clk 0:01:37.9]} 13. exf6 {[%clk 0:02:33.6]} 13... gxf6 {[%clk
0:01:37.4]} 14. Ne4 {[%clk 0:02:33.4]} 14... e5 {[%clk 0:01:35]} 15. Be3 {[%clk
0:02:32.1]} 15... b6 {[%clk 0:01:32.9]} 16. Ba6 {[%clk 0:02:03.4]} 16... Rd8
{[%clk 0:01:27.9]} 17. Rd2 {[%clk 0:01:50.1]} 17... Bf5 {[%clk 0:01:19.7]} 18.
f3 {[%clk 0:01:45.6]} 18... Bxe4 {[%clk 0:01:16.7]} 19. fxe4 {[%clk 0:01:42.7]}
19... Rxd2 {[%clk 0:01:16.4]} 20. Bxd2 {[%clk 0:01:42.7]} 20... Bd6 {[%clk
0:01:05.7]} 21. Be3 {[%clk 0:01:38.5]} 21... Ke7 {[%clk 0:01:03]} 22. Rf1 {[%clk
0:01:34]} 22... Nd8 {[%clk 0:00:59.6]} 23. g3 {[%clk 0:01:26.4]} 23... h5 {[%clk
0:00:58.7]} 24. h4 {[%clk 0:01:25.8]} 24... Ne6 {[%clk 0:00:56.3]} 25. Kf2
{[%clk 0:01:23.1]} 25... Ng7 {[%clk 0:00:38.1]} 26. Ke2 {[%clk 0:01:21.7]} 26...
Ne8 {[%clk 0:00:37.5]} 27. a4 {[%clk 0:01:20]} 27... Nc7 {[%clk 0:00:37]} 28.
Bd3 {[%clk 0:01:18.8]} 28... a6 {[%clk 0:00:37]} 29. b3 {[%clk 0:00:59.9]} 29...
Rg8 {[%clk 0:00:33.3]} 30. Bf2 {[%clk 0:00:56.8]} 30... Ra8 {[%clk 0:00:30]} 31.
Kf3 {[%clk 0:00:54.1]} 31... b5 {[%clk 0:00:29.4]} 32. a5 {[%clk 0:00:53.2]}
32... Rg8 {[%clk 0:00:27.3]} 33. Rg1 {[%clk 0:00:51]} 33... Ne6 {[%clk
0:00:27.5]} 34. g4 {[%clk 0:00:40.6]} 34... hxg4+ {[%clk 0:00:27.4]} 35. Rxg4
{[%clk 0:00:40.4]} 35... Rh8 {[%clk 0:00:23.7]} 36. Bf1 {[%clk 0:00:35.3]} 36...
Bc7 {[%clk 0:00:23]} 37. b4 {[%clk 0:00:18.2]} 37... cxb4 {[%clk 0:00:23.1]} 38.
cxb4 {[%clk 0:00:18.5]} 38... Bd6 {[%clk 0:00:23.5]} 39. Bb6 {[%clk 0:00:12.7]}
39... Bxb4 {[%clk 0:00:22.7]} 40. Bd3 {[%clk 0:00:12]} 40... Be1 {[%clk
0:00:22.2]} 41. Bf2 {[%clk 0:00:07]} 41... Bxf2 {[%clk 0:00:22.1]} 42. Kxf2
{[%clk 0:00:07.3]} 42... Nf4 {[%clk 0:00:22.2]} 43. Bc2 {[%clk 0:00:06]} 43...
Kd6 {[%clk 0:00:22.1]} 44. Bb3 {[%clk 0:00:05.3]} 44... Kc5 {[%clk 0:00:22.4]}
45. Ke3 {[%clk 0:00:05.1]} 45... Kb4 {[%clk 0:00:22.2]} 46. Bd5 {[%clk
0:00:04.6]} 46... Rxh4 {[%clk 0:00:21.7]} 47. Rxh4 {[%clk 0:00:04.2]} 47... Ng2+
{[%clk 0:00:22]} 48. Kf3 {[%clk 0:00:04.1]} 48... Nxh4+ {[%clk 0:00:22.7]} 49.
Kg4 {[%clk 0:00:04.6]} 49... Ng2 {[%clk 0:00:21.9]} 50. Kf5 {[%clk 0:00:04.9]}
50... Kxa5 {[%clk 0:00:22]} 51. Kxf6 {[%clk 0:00:05.1]} 51... Kb4 {[%clk
0:00:21.5]} 52. Kxe5 {[%clk 0:00:05.5]} 52... a5 {[%clk 0:00:21.9]} 53. Kd6
{[%clk 0:00:05.8]} 53... Ne3 {[%clk 0:00:21.5]} 54. e5 {[%clk 0:00:06.1]} 54...
a4 {[%clk 0:00:21.5]} 55. e6 {[%clk 0:00:06.4]} 55... Kc3 {[%clk 0:00:21.7]} 56.
Be4 {[%clk 0:00:06.1]} 56... Nc4+ {[%clk 0:00:21.1]} 57. Kc7 {[%clk 0:00:05.6]}
57... Nd2 {[%clk 0:00:15.9]} 58. e7 {[%clk 0:00:05.1]} 58... Nxe4 {[%clk
0:00:16.2]} 59. e8=Q {[%clk 0:00:05.6]} 59... Nc5 {[%clk 0:00:16.5]} 60. Qxb5
{[%clk 0:00:05.4]} 60... Nd3 {[%clk 0:00:14.3]} 61. Qxa4 {[%clk 0:00:05.3]} 1-0